bitfinex-derivatives/quotes_ETHF0:USTF0_20250316
["timestamp","ask_amount","ask_price","bid_price","bid_amount"]
[1742122470858,2.36693,1908.3,1908.2,7.0939]
[1742122471063,2.36693,1908.3,1908.2,5.84838]
[1742122471264,2.36693,1908.3,1908.2,4.8003]
[1742122472759,2.36693,1908.3,1908.2,5.84838]
[1742122473559,1.3189,1908.3,1908.2,5.84838]
[1742122473760,2.36693,1908.3,1908.2,5.84838]
[1742122474053,1.04803,1908.3,1908.2,5.84838]
[1742122474866,2.39043,1908.3,1908.2,5.84838]
[1742122475267,2.39043,1908.3,1908.2,4.8003]
[1742122476169,2.39043,1908.3,1908.2,5.84838]
[1742122477562,2.39043,1908.3,1908.2,4.8003]
[1742122478971,2.39043,1908.3,1908.2,5.84838]
[1742122483766,2.39043,1908.3,1908.2,4.8003]
[1742122483966,2.39043,1908.3,1908.1,3.2078]
[1742122483967,1.04808,1908.2,1908.1,3.2078]
[1742122484166,2.36498,1908.2,1908.1,6.6448]
[1742122486479,2.36498,1908.2,1908.1,8.0542]
[1742122490481,2.36498,1908.2,1908.1,4.6172]
[1742122490881,1.04819,1908.0,1907.9,3.2156604]
[1742122491077,1.04819,1908.0,1907.9,0.0078604]
[1742122491282,1.04819,1908.0,1907.9,3.4448604]
[1742122491476,2.39229,1908.0,1907.9,3.4448604]
[1742122492975,2.39229,1908.0,1907.9,4.8108604]
[1742122498085,2.39229,1908.0,1907.9,1.3738604]
[1742122498280,2.39229,1908.0,1907.9,4.8118604]
[1742122499080,1.3441,1908.0,1907.6,3.2078]
[1742122499285,3.2078,1907.7,1907.0,3.2078]
[1742122499486,3.2078,1907.5,1906.9,2.2936]
[1742122499786,1.0487,1907.1,1907.0,1.04874]
[1742122500284,1.0487,1907.1,1907.0,44.0078]
[1742122501187,1.0487,1907.1,1907.0,47.4458]
[1742122501389,2.4927,1907.1,1907.0,47.4458]
[1742122502285,2.4927,1907.1,1907.0,44.238]
[1742122502583,2.4927,1907.1,1907.0,40.8]
[1742122502779,2.4927,1907.1,1907.0,44.238]
[1742122503085,1.0487,1907.1,1907.0,44.238]
[1742122504482,2.4216,1907.1,1907.0,44.238]
[1742122504979,1.0487,1907.1,1907.0,44.238]
[1742122505983,2.3868,1907.1,1907.0,44.238]
[1742122510988,1.0487,1907.1,1907.0,48.49454]
[1742122511289,1.0487,1907.1,1907.0,45.28674]
[1742122513993,0.0078604,1907.2,1907.1,1.04869]
[1742122514185,1.0564904,1907.2,1907.1,1.04869]
[1742122514585,0.0078604,1907.2,1907.1,1.04869]
[1742122514786,0.0078604,1907.2,1907.1,41.84869]
[1742122517894,1.0485,1907.5,1907.4,1.04852]
[1742122518199,1.0485,1907.5,1907.4,4.48752]
[1742122518899,1.04847,1907.5,1907.4,4.48748]
[1742122519090,1.04847,1907.5,1907.4,45.28748]
[1742122519396,1.04847,1907.5,1907.4,44.239]
[1742122519584,2.43407,1907.5,1907.4,45.28752]
[1742122519791,1.04847,1907.5,1907.4,46.66372]
[1742122522299,1.0563304,1907.6,1907.5,1.04847]
[1742122522702,2.4069304,1907.6,1907.5,2.37267]
[1742122523003,2.4069304,1907.6,1907.5,1.3242]
[1742122523705,1.04847,1907.5,1907.4,4.7632]
[1742122524006,3.09837,1907.5,1907.4,4.7632]
[1742122524201,3.09837,1907.5,1907.4,1.3242]
[1742122525305,3.80207,1907.5,1907.4,1.3242]
[1742122526200,1.04852,1907.4,1907.3,40.8]
[1742122526507,2.44562,1907.4,1907.3,42.2204]
[1742122527508,2.44562,1907.4,1907.3,45.6584]
[1742122529309,1.04869,1907.1,1907.0,3.2078]
[1742122529504,1.04869,1907.1,1907.0,6.6458]
[1742122529701,1.04869,1907.1,1907.0,44.238]
[1742122530097,1.04869,1907.1,1907.0,40.8]
[1742122530302,1.04874,1907.0,1906.9,29.0868604]
[1742122530504,1.04874,1907.0,1906.9,32.5248604]
[1742122530805,1.04874,1907.0,1906.9,74.6632604]
[1742122531611,1.04874,1907.0,1906.9,75.3840604]
[1742122532301,1.04874,1907.0,1906.9,74.6632604]
[1742122533304,1.04874,1907.0,1906.9,75.7120604]
[1742122534309,1.04874,1907.0,1906.9,74.6632604]
[1742122534819,1.04874,1907.0,1906.9,74.6642604]
[1742122536406,1.04874,1907.0,1906.9,33.8642604]
[1742122542919,1.04874,1907.0,1906.9,34.9130604]
[1742122543119,1.04874,1907.1,1907.0,1.04871]
[1742122543315,1.04874,1907.1,1907.0,2.46541]
[1742122543913,1.04874,1907.1,1907.0,1.4167]
[1742122544110,2.45284,1907.1,1907.0,1.4167]
[1742122546419,2.45284,1907.1,1907.0,2.46544]
[1742122546721,1.04867,1907.2,1907.1,1.04869]
[1742122546915,1.04867,1907.2,1907.1,2.38729]
[1742122550410,1.04867,1907.2,1907.1,1.3386]
[1742122551819,1.04867,1907.2,1907.1,4.7776]
[1742122552315,1.04867,1907.2,1907.1,1.3386]
[1742122552512,1.04867,1907.2,1907.1,4.7776]
[1742122554820,1.04867,1907.2,1907.1,5.82629]
[1742122555014,1.04867,1907.2,1907.1,4.7776]
[1742122557923,1.04862,1907.3,1907.1,4.7776]
[1742122558127,1.04862,1907.3,1907.2,2.0521]
[1742122558426,1.04862,1907.3,1907.2,2.7799]
[1742122558819,1.04862,1907.3,1907.2,3.82848]
[1742122561721,1.04862,1907.3,1907.2,2.7799]
[1742122562027,1.04862,1907.3,1907.2,3.82853]
[1742122562225,2.40672,1907.3,1907.2,3.82853]
[1742122562528,2.40672,1907.3,1907.2,2.7799]
[1742122562726,2.40672,1907.3,1907.2,3.82853]
[1742122564129,0.704,1907.4,1907.3,1.04858]
[1742122564320,1.0562904,1907.6,1907.5,1.04847]
[1742122564525,0.0078604,1907.6,1907.5,4.48647]
[1742122565224,0.0078604,1907.6,1907.5,5.91357]
[1742122565622,1.04832,1907.8,1907.7,1.04831]
[1742122566231,6.0462,1907.9,1907.6,1.4165]
[1742122566232,1.04836,1907.7,1907.6,2.46487]
[1742122567322,1.04836,1907.7,1907.6,1.4165]
[1742122567834,1.04836,1907.7,1907.6,3.438]
[1742122568228,5.71076,1907.7,1907.6,3.438]
[1742122570026,1.04841,1907.6,1907.5,1.3665]
[1742122570333,3.76241,1907.6,1907.5,1.3665]
[1742122572330,3.76241,1907.6,1907.5,2.41497]
[1742122572535,3.76241,1907.6,1907.5,3.13167]
[1742122572726,2.714,1907.6,1907.5,3.13167]
[1742122573032,1.73391,1907.6,1907.5,3.13167]
[1742122573220,3.89601,1907.6,1907.5,3.13167]
[1742122574034,3.89601,1907.6,1907.5,4.8045]
[1742122579927,1.04852,1907.4,1907.3,3.2078]
[1742122580130,1.04863,1907.2,1907.1,4.94694]
[1742122580326,1.04863,1907.2,1907.1,7.69344]
[1742122580737,1.75173,1907.2,1907.1,7.69344]
[1742122581131,1.75173,1907.2,1907.1,9.13804]
[1742122581132,3.17413,1907.2,1907.1,9.13804]
[1742122581727,3.17413,1907.2,1907.1,8.0894]
[1742122582136,3.17413,1907.2,1907.1,4.6524]
[1742122582334,3.17413,1907.2,1907.1,8.0894]
[1742122583632,3.17413,1907.2,1907.1,8.0894]
[1742122584035,3.17413,1907.2,1907.1,6.6448]
[1742122584436,3.17413,1907.2,1907.1,7.9623]
[1742122584631,1.04874,1907.0,1906.9,35.7346604]
[1742122584834,1.04874,1907.0,1906.9,37.0521604]
[1742122590043,1.76054,1907.0,1906.9,37.0521604]
[1742122591036,1.76054,1907.0,1906.9,7.9701604]
[1742122592850,1.04874,1907.0,1906.9,9.0189604]
[1742122593043,1.04874,1907.0,1906.9,9.6899604]
[1742122593545,1.04874,1907.0,1906.9,7.9701604]
[1742122597643,1.04874,1907.0,1906.9,1.3253604]
[1742122599150,1.04874,1907.0,1906.9,2.3741604]
[1742122599747,1.04874,1907.0,1906.9,1.3253604]
[1742122601552,1.04874,1907.0,1906.9,2.3741604]
[1742122602050,1.04874,1907.0,1906.9,3.0972604]
[1742122603050,1.04874,1907.0,1906.9,1.3253604]
[1742122603251,1.04874,1907.0,1906.9,4.7633604]
[1742122603646,1.04874,1907.0,1906.9,1.3253604]
[1742122604346,1.04874,1907.0,1906.9,0.0078604]
[1742122605952,2.37144,1907.0,1906.9,0.0078604]
[1742122607250,1.0488,1906.9,1906.8,1.3692]
[1742122607451,2.62216,1906.8,1906.6,3.438]
[1742122607751,2.46111,1906.7,1906.6,3.438]
[1742122607950,2.46111,1906.7,1906.6,44.238]
[1742122611651,1.04891,1906.7,1906.6,45.28696]
[1742122611841,1.04891,1906.7,1906.6,44.238]
[1742122612558,2.49381,1906.7,1906.6,44.238]
[1742122612951,1.04896,1906.6,1906.5,0.0078604]
[1742122613252,3.88416,1906.6,1906.5,3.4458604]
[1742122613462,3.88416,1906.6,1906.5,44.2458604]
[1742122615246,3.88416,1906.6,1906.5,40.8078604]
[1742122615452,3.88416,1906.6,1906.5,44.2458604]
[1742122620466,3.88416,1906.6,1906.5,45.5720604]
[1742122624766,3.88416,1906.6,1906.5,42.1340604]
[1742122625266,7.09196,1906.6,1906.5,1.3340604]
[1742122626059,7.09196,1906.6,1906.5,0.0078604]
[1742122626259,1.04902,1906.5,1906.4,1.371]
[1742122626464,2.50972,1906.5,1906.4,1.371]
[1742122626660,1.04918,1906.2,1906.1,0.6925]
[1742122626862,1.04918,1906.2,1906.1,44.9305]
[1742122627364,1.04918,1906.2,1906.1,45.97974]
[1742122627570,1.04916,1906.3,1906.2,1.04915]
[1742122628972,1.04916,1906.3,1906.2,41.84915]
[1742122629778,1.04916,1906.3,1906.2,42.2536]
[1742122629981,1.04916,1906.3,1906.2,45.6916]
[1742122630178,1.76176,1906.3,1906.2,45.6916]
[1742122630377,3.12436,1906.3,1906.2,45.6916]
[1742122631278,2.41176,1906.3,1906.2,45.6916]
[1742122634982,2.41176,1906.3,1906.2,42.2536]
[1742122639998,1.04916,1906.3,1906.2,42.9208]
[1742122640297,2.39026,1906.3,1906.2,42.9208]
[1742122641294,2.39026,1906.3,1906.2,43.96998]
[1742122641496,1.04916,1906.3,1906.2,43.96998]
[1742122642095,1.04916,1906.3,1906.2,42.9208]
[1742122642289,2.39026,1906.3,1906.2,42.9208]
[1742122649107,2.39026,1906.3,1906.2,46.3588]
[1742122650807,2.39026,1906.3,1906.2,47.40798]
[1742122651011,2.39026,1906.3,1906.2,46.3588]
[1742122652403,2.39026,1906.3,1906.2,47.40798]
[1742122652602,2.39026,1906.3,1906.2,46.3588]
[1742122652804,2.39026,1906.3,1906.2,47.40798]
[1742122653011,1.04911,1906.4,1906.3,1.0491]
[1742122653205,1.04911,1906.4,1906.3,3.1121]
[1742122653411,1.04907,1906.4,1906.3,3.11207]
[1742122655111,1.04907,1906.4,1906.3,2.063]
[1742122655306,2.49927,1906.4,1906.3,2.063]
[1742122658509,2.49927,1906.4,1906.3,1.3339]
[1742122659511,2.49927,1906.4,1906.3,4.7709]
[1742122663613,2.49927,1906.4,1906.3,5.82003]
[1742122663916,2.49927,1906.4,1906.3,4.7709]
[1742122669624,2.49927,1906.4,1906.3,5.82003]
[1742122670614,2.49927,1906.4,1906.3,4.7709]
[1742122671925,2.49927,1906.4,1906.3,1.3339]
[1742122672223,2.49927,1906.4,1906.3,4.7699]
[1742122679524,1.04918,1906.2,1906.1,40.8]
[1742122679731,1.04918,1906.2,1906.1,1.4469]
[1742122680028,1.04924,1906.1,1906.0,6.6516604]
[1742122680329,2.44574,1906.1,1906.0,48.8985604]
[1742122680634,5.65354,1906.1,1906.0,1.4547604]
[1742122681332,5.65354,1906.1,1906.0,0.0078604]
[1742122683025,5.65354,1906.1,1906.0,1.4007604]
[1742122684328,5.65354,1906.1,1906.0,0.0078604]
[1742122685537,6.75791163,1906.1,1906.0,0.0078604]
[1742122686036,5.65354,1906.1,1906.0,0.0078604]
[1742122687134,6.75695836,1906.1,1906.0,0.0078604]
[1742122687326,1.0494,1905.8,1905.7,30.4115]
[1742122687527,1.0494,1905.8,1905.7,74.6475]
[1742122687732,1.0494,1905.8,1905.7,45.5545]
[1742122688037,1.0494,1905.8,1905.7,4.7545]
[1742122688733,1.04946,1905.7,1905.6,40.8078604]
[1742122688927,1.76926,1905.7,1905.6,45.7015604]
[1742122689129,1.76926,1905.7,1905.6,4.9015604]
[1742122689633,2.49246,1905.7,1905.6,4.9015604]
[1742122690339,1.04946,1905.7,1905.6,6.6254604]
[1742122690540,1.04946,1905.7,1905.6,5.5759604]
[1742122690935,1.04946,1905.7,1905.6,46.3759604]
[1742122691137,2.3962904,1905.8,1905.7,1.04946]
[1742122691434,2.3962904,1905.8,1905.7,2.1454]
[1742122692641,3.8190904,1905.8,1905.7,1.4577]
[1742122697335,3.1195904,1905.8,1905.7,1.4577]
[1742122698542,2.3962904,1905.8,1905.7,1.4577]
[1742122705948,1.0572904,1905.8,1905.7,2.1807]
[1742122706644,2.4077904,1905.8,1905.7,2.1807]
[1742122709542,2.4077904,1905.8,1905.7,1.4577]
[1742122710345,2.4077904,1905.8,1905.7,2.50716]
[1742122710652,2.4077904,1905.8,1905.7,1.4577]
[1742122713056,2.4077904,1905.8,1905.7,2.50716]
[1742122713256,2.4077904,1905.8,1905.7,1.4577]
[1742122714755,2.4077904,1905.8,1905.7,2.50716]
[1742122715055,2.4077904,1905.8,1905.7,1.4577]
[1742122716751,2.4077904,1905.8,1905.7,2.50716]
[1742122716957,2.4077904,1905.8,1905.7,1.4577]
[1742122718256,2.4077904,1905.8,1905.7,2.50716]
[1742122718556,0.0078604,1905.8,1905.7,2.50716]
[1742122718762,0.0078604,1905.8,1905.7,8.21496]
[1742122719959,2.51774219,1906.1,1905.7,8.21496]
[1742122719960,1.04924,1906.1,1906.0,1.04929]
[1742122720157,1.04924,1906.1,1906.0,7.69209]
[1742122720751,2.46164,1906.1,1906.0,9.07409]
[1742122721256,2.46164,1906.1,1906.0,8.0248]
[1742122721457,2.46164,1906.1,1906.0,3.435]
[1742122721658,3.81734,1906.1,1906.0,3.435]
[1742122722456,4.92268219,1906.1,1906.0,3.435]
[1742122723164,3.81734,1906.1,1906.0,3.435]
[1742122723963,1.04935,1905.9,1905.8,4.7558]
[1742122725865,1.04935,1905.9,1905.8,5.8052]
[1742122726056,1.04935,1905.9,1905.8,2.3702]
[1742122726364,2.37192,1906.0,1905.9,1.04935]
[1742122726562,2.37192,1906.0,1905.9,2.43615]
[1742122726963,2.37192,1906.0,1905.9,3.12705]
[1742122727263,2.37189,1906.0,1905.9,2.0777]
[1742122727462,2.37189,1906.0,1905.9,1.3868]
[1742122729467,1.04946,1905.7,1905.6,45.0651304]
[1742122729767,1.04942,1905.8,1905.7,1.04943]
[1742122729964,1.04942,1905.8,1905.7,3.435]
[1742122730166,2.38692,1905.8,1905.7,3.435]
[1742122730758,2.38692,1905.8,1905.7,5.94076]
[1742122731372,1.71412,1905.8,1905.7,5.94076]
[1742122731666,1.04942,1905.8,1905.7,5.94076]
[1742122732264,1.0494,1905.8,1905.7,5.9407]
[1742122732967,1.0494,1905.8,1905.7,4.8913]
[1742122734868,1.0494,1905.8,1905.7,5.94076]
[1742122735072,1.0494,1905.8,1905.7,4.8913]
[1742122735664,2.40758,1905.9,1905.8,1.0494]
[1742122735863,2.40758,1905.9,1905.8,2.3943]
[1742122739866,2.40758,1905.9,1905.8,1.3449]
[1742122741072,2.40758,1905.9,1905.8,4.7789]
[1742122744376,2.40758,1905.9,1905.8,3.434]
[1742122746178,2.40758,1905.9,1905.8,4.8548]
[1742122746882,2.40758,1905.9,1905.8,5.9042]
[1742122748283,5.8338604,1906.2,1906.0,1.04927]
[1742122748477,1.04929,1906.0,1905.9,0.7268]
[1742122748686,1.04929,1906.0,1905.9,4.1608]
[1742122748984,1.04929,1906.0,1905.9,4.48335]
[1742122749182,1.04929,1906.0,1905.9,3.434]
[1742122749481,2.37619,1906.0,1905.9,3.434]
[1742122752682,2.37619,1906.0,1905.9,4.48335]
[1742122752876,2.37619,1906.0,1905.9,3.434]
[1742122753280,2.37619,1906.0,1905.9,4.48335]
[1742122754694,2.37619,1906.0,1905.9,3.434]
[1742122754897,2.37619,1906.0,1905.9,4.48335]
[1742122755392,2.37619,1906.0,1905.9,3.434]
[1742122755792,2.37619,1906.0,1905.9,4.48335]
[1742122755989,2.16189118,1906.2,1906.1,1.04924]
[1742122756196,1.04924,1906.1,1906.0,1.72305]
[1742122757292,2.46724,1906.1,1906.0,1.72305]
[1742122758897,2.46724,1906.1,1906.0,3.06695]
[1742122763408,3.80894,1906.1,1906.0,3.06695]
[1742122765212,3.80894,1906.1,1906.0,2.39315]
[1742122766202,3.14194,1906.1,1906.0,2.39315]
[1742122768406,3.81534,1906.1,1906.0,2.39315]
[1742122769614,3.81534,1906.1,1906.0,4.7759]
[1742122772513,3.81534,1906.1,1906.0,5.82519]
[1742122772713,3.81534,1906.1,1906.0,4.7759]
[1742122773515,3.81534,1906.1,1906.0,5.82519]
[1742122774519,3.81534,1906.1,1906.0,4.7759]
[1742122774718,3.81534,1906.1,1906.0,1.3439]
[1742122774919,3.81534,1906.1,1906.0,4.7759]
[1742122775422,3.81534,1906.1,1906.0,5.82519]
[1742122775617,3.81534,1906.1,1906.0,4.7759]
[1742122776322,2.0927,1906.1,1906.0,5.82519]
[1742122776621,3.14194,1906.1,1906.0,5.82519]
[1742122778630,0.0078604,1906.2,1906.1,1.04924]
[1742122778832,1.4349604,1906.2,1906.1,3.75564]
[1742122779126,2.4841404,1906.2,1906.1,3.75564]
[1742122782329,2.4841404,1906.2,1906.1,2.37174]
[1742122782634,1.4349604,1906.2,1906.1,2.37174]
[1742122782834,1.4349604,1906.2,1906.1,3.10114]
[1742122783834,2.4841404,1906.2,1906.1,3.10114]
[1742122785936,2.4841404,1906.2,1906.1,2.0519]
[1742122786128,1.04929,1906.1,1906.0,1.04929]
[1742122786327,3.79654,1906.1,1906.0,4.8031]
[1742122786928,3.79654,1906.1,1906.0,3.431]
[1742122787434,3.79654,1906.1,1906.0,4.8031]
[1742122788028,3.79654,1906.1,1906.0,5.85239]
[1742122788227,3.79654,1906.1,1906.0,4.8031]
[1742122788837,3.79654,1906.1,1906.0,5.85239]
[1742122789136,3.79654,1906.1,1906.0,4.8031]
[1742122789336,3.79654,1906.1,1906.0,5.85239]
[1742122789538,2.7473,1906.1,1906.0,5.85239]
[1742122789735,3.79654,1906.1,1906.0,5.85239]
[1742122791331,3.10034,1906.1,1906.0,5.85239]
[1742122791941,2.0511,1906.1,1906.0,5.85239]
[1742122793738,3.10034,1906.1,1906.0,5.85239]
[1742122794842,3.77624,1906.1,1906.0,5.85239]
[1742122795733,2.727,1906.1,1906.0,5.85239]
[1742122796244,2.0511,1906.1,1906.0,5.85239]
[1742122796442,2.0511,1906.1,1906.0,6.51869]
[1742122797642,1.3785,1906.1,1906.0,6.51869]
[1742122799445,2.42774,1906.1,1906.0,6.51869]
[1742122801134,3.11704,1906.1,1906.0,5.85239]
[1742122802158,3.11704,1906.1,1906.0,1.3721]
[1742122802351,1.04939,1905.9,1905.8,1.3457]
[1742122802647,1.04939,1905.9,1905.8,4.7757]
[1742122802837,1.04939,1905.9,1905.8,1.3457]
[1742122803040,2.51049,1905.9,1905.8,4.7757]
[1742122803842,1.4611,1905.9,1905.8,4.7757]
[1742122806750,1.4611,1905.9,1905.8,3.43]
[1742122807142,1.4611,1905.9,1905.8,4.8569]
[1742122807339,1.4611,1905.9,1905.8,3.43]
[1742122807551,1.4611,1905.9,1905.8,4.8131]
[1742122808650,1.4611,1905.9,1905.8,5.5025]
[1742122811946,0.6831,1906.0,1905.8,6.2069]
[1742122812150,2.0994,1906.0,1905.9,1.3249]
[1742122813955,2.0994,1906.0,1905.9,4.7549]
[1742122814457,2.0994,1906.0,1905.9,3.43]
[1742122821962,1.4163,1906.0,1905.9,3.43]
[1742122824452,1.4163,1906.0,1905.9,3.429]
[1742122830068,0.6893,1906.1,1905.9,3.429]
[1742122830369,2.0603,1906.1,1906.0,2.077]
[1742122830571,2.0603,1906.1,1906.0,1.3641]
[1742122830866,1.371,1906.1,1906.0,1.3641]
[1742122832971,4.5788,1906.1,1905.1,2.2936]
[1742122833166,3.2078,1905.6,1905.1,1.4429]
[1742122833360,1.4454,1905.5,1905.2,4.8719]
[1742122833556,2.8833,1905.5,1905.2,45.6719]
[1742122834067,1.4379,1905.4,1905.2,45.6719]
[1742122834270,1.4379,1905.4,1905.2,45.6797604]
[1742122834568,1.4379,1905.4,1905.3,1.4429]
[1742122835265,1.4379,1905.4,1905.3,4.8719]
[1742122836562,0.7245,1905.5,1905.3,5.5379]
[1742122836865,0.6866,1905.9,1905.4,4.6283]
[1742122837063,2.1835,1905.8,1905.6,3.2078]
[1742122837265,0.7289,1905.8,1905.7,4.8495]
[1742122841464,0.7289,1905.8,1905.4,32.9952]
[1742122841768,3.2078,1905.6,1905.5,3.429]
[1742122841961,3.2078,1905.6,1905.4,29.103]
[1742122842162,3.2078,1905.6,1905.5,3.429]
[1742122843361,3.2078,1905.6,1905.4,29.103]
[1742122843560,5.7078,1905.6,1905.2,0.0078604]
[1742122843766,3.2078,1905.3,1904.5,32.3118]
[1742122843973,3.2078,1905.1,1904.6,3.429]
[1742122844169,3.2078,1905.1,1904.7,40.8]
[1742122844364,3.2078,1905.1,1904.7,42.2098]
[1742122844870,3.2078,1905.1,1904.7,42.2176604]
[1742122844871,3.2156604,1905.1,1904.7,42.2176604]
[1742122846669,0.7101,1905.0,1904.7,42.2176604]
[1742122847458,0.7101,1905.0,1904.7,40.8078604]
[1742122848362,0.7101,1905.0,1904.8,3.429]
[1742122848764,3.2156604,1905.1,1904.8,4.8388]
[1742122849071,1.4061,1905.0,1904.9,1.4098]
[1742122849683,1.4061,1905.0,1904.9,42.2098]
[1742122850562,1.4061,1905.0,1904.9,40.8]
[1742122851070,1.4061,1905.0,1904.9,42.1561]
[1742122854272,1.4061,1905.0,1904.9,40.8]
[1742122854469,1.4061,1905.0,1904.9,3.43]
[1742122855974,2.131,1905.0,1904.9,3.43]
[1742122856369,4.631,1905.0,1904.9,3.43]
[1742122857869,10.457,1905.0,1904.9,3.43]
[1742122858765,10.457,1905.0,1904.8,3.43]
[1742122858967,4.5662,1904.9,1904.7,0.0078604]
[1742122859163,1.3886,1904.8,1904.7,3.4378604]
[1742122859571,3.8886,1904.8,1904.7,3.4378604]
[1742122859771,2.0609,1904.8,1904.7,3.4378604]
[1742122859979,4.5609,1904.8,1904.7,0.0078604]
[1742122860178,10.3869,1904.8,1904.0,3.2078]
[1742122860474,3.2078,1904.2,1902.9,3.2078]
[1742122860670,3.2078,1904.2,1903.3,3.2078]
[1742122860671,3.2078,1903.8,1903.3,3.2078]
[1742122860865,3.2078,1903.8,1903.4,2.0897]
[1742122861269,3.2078,1903.8,1903.5,3.498]
[1742122861472,0.0078604,1903.8,1903.5,4.9183]
[1742122861677,3.2078,1904.2,1903.6,3.9022]
[1742122861879,3.2078,1904.2,1903.7,1.4203]
[1742122862071,3.2078,1904.2,1903.8,3.514]
[1742122862274,3.2078,1904.2,1903.9,1.3393]
[1742122862974,3.2156604,1904.2,1903.9,1.3393]
[1742122864486,1.3922,1904.1,1903.9,1.3393]
[1742122864668,1.3922,1904.1,1904.0,3.513]
[1742122865973,3.8922,1904.1,1903.6,3.2078]
[1742122866169,3.2078,1903.8,1903.5,1.4196]
[1742122866375,1.3975,1903.7,1903.6,3.514]
[1742122867383,6.5476,1904.1,1903.4,0.0078604]
[1742122867384,3.2078,1904.0,1903.4,0.0078604]
[1742122867582,4.6053,1904.0,1903.5,3.2078]
[1742122867783,4.6053,1904.0,1903.6,4.9336]
[1742122867980,3.2078,1904.0,1903.7,1.4196]
[1742122868175,3.2078,1904.0,1903.7,2.097]
[1742122868678,3.2078,1904.0,1903.8,40.8]
[1742122868876,3.2078,1904.0,1903.9,4.928]
[1742122869871,3.2078,1904.0,1903.4,2.3014604]
[1742122869872,5.7078,1904.0,1903.4,2.3014604]
[1742122870077,3.2078,1903.5,1902.5,5.5014]
[1742122870276,3.2078,1903.1,1902.5,8.1808]
[1742122870489,1.4547,1903.0,1902.5,8.1808]
[1742122870987,3.9111,1903.3,1902.7,3.2078]
[1742122871170,3.2078,1903.3,1902.8,5.6644]
[1742122871373,9.0338,1903.7,1903.2,3.2078]
[1742122871585,1.3917,1903.6,1903.3,3.577]
[1742122872079,3.2078,1903.5,1903.2,3.582]
[1742122872482,3.2078,1903.5,1903.3,0.7085]
[1742122872781,3.21568167,1903.5,1903.3,0.7085]
[1742122873681,1.3917,1903.4,1903.3,0.7085]
[1742122873885,3.21568167,1903.5,1903.3,4.2975]
[1742122874382,0.00788167,1903.5,1903.3,4.2975]
[1742122874582,0.00788167,1903.5,1903.4,40.8]
[1742122875284,3.21568167,1903.5,1903.4,40.8]
[1742122875485,3.21568167,1903.5,1903.3,4.2975]
[1742122875980,3.21568167,1903.5,1903.3,45.0975]
[1742122876483,3.21568167,1903.5,1903.3,4.2975]
[1742122876681,3.21568167,1903.5,1902.9,5.5014]
[1742122876878,3.2078,1903.3,1903.0,4.2989]
[1742122877094,1.357,1903.2,1903.0,4.2989]
[1742122877976,3.2078,1903.3,1903.0,4.2989]
[1742122878586,5.826,1903.4,1903.0,4.2989]
[1742122878981,7.2018,1903.4,1903.0,4.2989]
[1742122881285,5.826,1903.4,1903.0,4.2989]
[1742122881784,3.21568167,1903.5,1903.0,4.2989]
[1742122882085,1.3182,1903.4,1903.0,4.2989]
[1742122883484,1.3182,1903.4,1903.1,40.8]
[1742122884287,1.3182,1903.4,1903.0,4.2989]
[1742122884784,1.3182,1903.4,1903.1,40.8]
[1742122885181,1.3182,1903.4,1903.1,44.0078]
[1742122885380,0.00788167,1903.5,1903.1,44.0078]
[1742122888894,0.00788167,1903.5,1903.2,1.3216]
[1742122889092,0.00788167,1903.5,1903.3,3.589]
[1742122889292,0.00788167,1903.5,1903.4,1.3216]
[1742122894592,0.00788167,1903.5,1903.4,4.8966]
[1742122895486,3.21568167,1903.5,1903.3,0.7158]
[1742122895699,1.3198,1903.4,1903.3,0.7158]
[1742122895898,2.0055,1903.4,1903.2,4.9993]
[1742122896200,3.2078,1903.3,1903.2,1.4233]
[1742122896498,1.3198,1903.3,1903.2,1.4233]
[1742122896999,0.00788167,1903.5,1903.2,1.4233]
[1742122897194,0.00788167,1903.5,1903.3,1.4265]
[1742122897400,1.32768167,1903.5,1903.4,1.4233]
[1742122901204,1.32768167,1903.5,1903.4,4.9903]
[1742122901804,0.00788167,1903.5,1903.4,4.9903]
[1742122906795,0.00788167,1903.5,1903.4,8.1981]
[1742122908105,1.37,1904.0,1903.4,8.1981]
[1742122908402,1.37,1904.0,1903.7,3.2078]
[1742122908605,1.101876,1904.3,1903.9,3.2078]
[1742122908810,1.101876,1904.3,1904.2,3.2078]
[1742122909007,1.101876,1904.3,1904.2,6.7688]
[1742122909209,0.00788167,1904.4,1904.2,44.361]
[1742122909402,0.00788167,1904.4,1904.3,1.4212]
[1742122910509,0.00788167,1904.4,1904.3,2.1329]
[1742122913308,3.21568167,1904.4,1904.2,3.558]
[1742122913609,1.3685,1904.3,1904.2,3.558]
[1742122914012,1.3685,1904.3,1904.2,4.996]
[1742122915108,3.21568167,1904.4,1904.2,4.996]
[1742122915109,0.00788167,1904.4,1904.2,4.996]
[1742122915906,1.3925,1904.8,1904.3,3.2078]
[1742122916110,1.3925,1904.8,1904.4,2.1202]
[1742122916308,1.3925,1904.8,1904.5,3.57]
[1742122916615,3.2078,1905.0,1904.6,1.438]
[1742122916911,1.3925,1904.9,1904.6,1.438]
[1742122917112,1.3925,1904.9,1904.7,0.6767]
[1742122917315,1.3925,1904.9,1904.8,4.9012]
[1742122917514,1.3925,1904.9,1904.8,3.567]
[1742122921410,3.21568167,1905.0,1904.8,3.567]
[1742122921612,4.56908167,1905.0,1904.9,2.096]
[1742122921810,4.56908167,1905.0,1904.1,3.21568167]
[1742122922012,3.2078,1904.8,1904.5,1.3866]
[1742122922312,2.081,1904.7,1904.5,1.3866]